{"text_format":"1","workbook":"xlsx","n_sheets":5,"sheets":["CONSIP_Lotto5","CONSIP_Storage","Valori","L5Nxx","Prezzi"],"not_rendered":{"charts":0,"images":4,"macros":1,"external_links":0,"defined_names":58,"comments":0,"pivot_tables":0},"unopened":[],"bounds":{"document_bytes":16777216,"sheet_cells":100000,"rows_first":2000,"rows_last":500,"rows_between":2000,"halvings":0,"cell_chars":16384,"cell_head_chars":4096},"cells_cut":0,"cells_raw":0,"read":"whole","date_system":"1900"}

{"sheet":"CONSIP_Lotto5","index":0,"n_rows":77,"n_cols":15,"rows_kept":77,"cut":false,"hidden":false,"merged":[[28,6,28,8],[20,6,20,8],[18,6,18,8],[9,0,9,2],[7,1,7,3],[0,0,0,8],[1,0,1,8],[3,0,3,2],[4,0,4,2],[6,1,6,3]]}
["SERVER 3 - LOTTO 5\nServer rackable quad-processore (base)"]
["INSPUR NF8480M5"]
["Opzioni di gara Default Lotto 5"]
["Nuovo server o Upgrade server esistente ?",null,null,"Nuovo Server"]
[{"$f":"IF(D4=Valori!D5,\"Inserire S/N del server\",\"\")","v":""},null,null,null,null,null,null,null,null,null,null,null,"Opzione","CTRL-SHIFT-N"]
[null,null,null,null,null,null,null,null,null,null,null,null,"Base"]
["Cliente Finale:",null,null,null,null,null,"N. Ordine:",null,null,null,null,null,"one-shot"]
["Referente:",null,null,null,null,null,"Data Ordine:"]
[null,null,null,null,null,null,null,null,null,null,null,null,"Opzione","CTRL-SHIFT-S"]
[null,null,null,null,null,null,null,null,null,null,null,null,"Base"]
[null,null,null,{"$f":"IF(D4=Valori!D4,\"Indicare la Quantità dei Nuovi server (L5N01):\",\"Indicare la Quantità dei server da Upgradare (L5N01):\")","v":"Indicare la Quantità dei Nuovi server (L5N01):"},1,null,null,null,null,null,null,null,"add-on",null,0]
[null,null,null,"Prezzo Convenzione  - Server Base",{"$f":"IF(AND(D4 = Valori!D5,D5 <> \"\"),0,+Prezzi!G5*E11)","v":3554},null,null,null,null,null,null,null,"one-shot"]
[null,null,null,"Prezzo Opzioni Aggiuntive",{"$f":"SUM(G18:G77)*E11","v":0}]
[null,null,null,"Prezzo  Totale Server",{"$f":"+E13+E12","v":3554},null,null,null,null,null,null,null,"Opzione","CTRL-SHIFT-H"]
[null,null,null,null,null,null,null,null,null,null,null,null,"Base"]
["Type","Product Code","Main Part PN","Name","QTY","Prezzo Convenzione","Differenza Configurazione Base","Parametro Consip","Denominazione Consip","Opzione",null,null,"one-shot"]
["CPU",null,null,null,null,null,null,null,null,"Base",null,null,"add-on"]
["CPU",{"$f":"IFERROR((VLOOKUP($D18,Prezzi,2,FALSE)),\"\")","v":"S00CPU00000T"},{"$f":"IFERROR((VLOOKUP($D18,Prezzi,3,FALSE)),\"\")","v":"V00106Y000000000"},"5218 (22M cache, 16 Cores, 32 Threads, 2.30 GHz, (125W), 10.40 GT/sec Intel® UPI) ",2,{"$f":"IF($E18=2,VLOOKUP($D18,Prezzi,8,FALSE),VLOOKUP($D18,Prezzi,10,FALSE))","v":"Base Config"},{"$f":"IF($E18=2,VLOOKUP($D18,Prezzi,9,FALSE),VLOOKUP($D18,Prezzi,11,FALSE))","v":"Base Config"},{"$f":"IF(AND(MID($D18,1,4)=\"5218\",$E18=2),\"Base Config\",(VLOOKUP($D18,Prezzi,5,FALSE)))","v":"Base Config"},{"$f":"IF(AND(MID($D18,1,4)=\"5218\",$E18=2),\"Base Config\",(VLOOKUP($D18,Prezzi,6,FALSE)))","v":"Base Config"},"Base",null,null,"Hidden"]
["RAM",null,null,{"$f":"IF(ERRORE_RAM,\"Con 4 CPU necessarie almeno 4 DIMM RAM\",\"\")","v":""},{"$f":"IF(MID(D20,1,2) = \"32\",32*E20,64*E20)","v":64},null,{"$f":"IF(AND(E18=2,E20>24),\"Con 2 CPUs fino a 24 DIMMs RAM\",\"\")","v":""},null,null,"Base"]
["Memory",{"$f":"IFERROR((VLOOKUP($D20,Prezzi,2,FALSE)),\"\")","v":"S00MEM000008"},{"$f":"IFERROR((VLOOKUP($D20,Prezzi,3,FALSE)),\"\")","v":"V00407R000000000"},"32GB DDR4-2933MHz RDIMM (Configurabile solo in caso di nuovo server)",2,{"$f":"IF(AND(MID($D20,1,2)=\"32\",$E20=2),\"Base Config\",VLOOKUP($D20,Prezzi,7,FALSE)*$E20)","v":"Base Config"},{"$f":"IF(AND(MID($D20,1,2)=\"32\",$E20=2),\"Base Config\",VLOOKUP($D20,Prezzi,7,FALSE)*$E20-(Prezzi!G8*2))","v":"Base Config"},{"$f":"IF(AND(MID($D20,1,2)=\"32\",$E20=2),\"Base Config\",(VLOOKUP($D20,Prezzi,5,FALSE)))","v":"Base Config"},{"$f":"IF(AND(MID($D20,1,2)=\"32\",$E20=2),\"Base Config\",(VLOOKUP($D20,Prezzi,6,FALSE)))","v":"Base Config"},"Base"]
["Schede di Rete",null,null,{"$f":"IF(AND(E21>4,E18<4),\"Con più di 4 schede (LAN/HBA) necessarie 4 CPU e 4 DIMM RAM\",\"\")","v":""},{"$f":"SUM(E22:E28)","v":1},null,{"$f":"IF(E21> 9,\"Superato il limite massimo di 9 slots\",\"\")","v":""},null,null,"Base"]
["1 x Network Interface Card dual-port PCI 1000-Mbps full-duplex","BN8156","V022035000000000","Network Interface card Dual-Port PCI 1000 MBPS Full Duplex OCP",1,null,"Base Config","Base Config","Base Config","Base"]
["OpzGigabit ",{"$f":"IFERROR((VLOOKUP($D23,Prezzi,2,FALSE)),\"\")","v":""},{"$f":"IFERROR((VLOOKUP($D23,Prezzi,3,FALSE)),\"\")","v":""},"NONE",0,null,{"$f":"IF(AND($E23=0,$D23=\"NONE\"),\"\",VLOOKUP(CONSIP_Lotto5!$D23,Prezzi,7,FALSE)*$E23)","v":""},{"$f":"IF(AND(E23=0,$D23=\"NONE\"),\"\",VLOOKUP(CONSIP_Lotto5!$D23,Prezzi,5,FALSE))","v":""},{"$f":"IF(AND(E23=0,$D23=\"NONE\"),\"\",VLOOKUP(CONSIP_Lotto5!$D23,Prezzi,6,FALSE))","v":""},"Base"]
["OpzGigabit10Gbps ","","","NONE",0,null,{"$f":"IF(AND($E24=0,$D24=\"NONE\"),\"\",VLOOKUP(CONSIP_Lotto5!$D24,Prezzi,7,FALSE)*$E24)","v":""},{"$f":"IF(AND(E24=0,$D24=\"NONE\"),\"\",VLOOKUP(CONSIP_Lotto5!$D24,Prezzi,5,FALSE))","v":""},{"$f":"IF(AND(E24=0,$D24=\"NONE\"),\"\",VLOOKUP(CONSIP_Lotto5!$D24,Prezzi,6,FALSE))","v":""},"Base"]
["OpzGigabit25Gbps ","","","NONE",0,null,{"$f":"IF(AND($E25=0,$D25=\"NONE\"),\"\",VLOOKUP(CONSIP_Lotto5!$D25,Prezzi,7,FALSE)*$E25)","v":""},{"$f":"IF(AND(E25=0,$D25=\"NONE\"),\"\",VLOOKUP(CONSIP_Lotto5!$D25,Prezzi,5,FALSE))","v":""},{"$f":"IF(AND(E25=0,$D25=\"NONE\"),\"\",VLOOKUP(CONSIP_Lotto5!$D25,Prezzi,6,FALSE))","v":""},"Base"]
["OpzGigabit10Gbps CNA ","","","NONE",0,null,{"$f":"IF(AND($E26=0,$D26=\"NONE\"),\"\",VLOOKUP(CONSIP_Lotto5!$D26,Prezzi,7,FALSE)*$E26)","v":""},{"$f":"IF(AND(E26=0,$D26=\"NONE\"),\"\",VLOOKUP(CONSIP_Lotto5!$D26,Prezzi,5,FALSE))","v":""},{"$f":"IF(AND(E26=0,$D26=\"NONE\"),\"\",VLOOKUP(CONSIP_Lotto5!$D26,Prezzi,6,FALSE))","v":""},"Base"]
["HBA",null,null,null,null,null,null,null,null,"Base"]
["OpzFibreChannel","","","NONE",null,null,{"$f":"IF(AND($E28=0,$D28=\"NONE\"),\"\",VLOOKUP(CONSIP_Lotto5!$D28,Prezzi,7,FALSE)*$E28)","v":""},{"$f":"IF(AND(E28=0,$D28=\"NONE\"),\"\",VLOOKUP(CONSIP_Lotto5!$D28,Prezzi,5,FALSE))","v":""},{"$f":"IF(AND(E28=0,$D28=\"NONE\"),\"\",VLOOKUP(CONSIP_Lotto5!$D28,Prezzi,6,FALSE))","v":""},"Base"]
["DISCHI",null,null,{"$f":"IF(AND($E30 > 0,$D30 <> \"NONE\",$E18 = 2),\"Con NVMe necessarie 4 CPU e almeno 4 DIMM RAM\",\"\")","v":""},{"$f":"SUM(E30:E39)","v":2},null,{"$f":"IF(Total_SSD_SAS_Disk > 24,\"Superato il limite massimo di 24 dischi\",\"\")","v":""},null,null,"Base"]
["NVME_SSD",{"$f":"IFERROR((VLOOKUP($D30,Prezzi,2,FALSE)),\"\")","v":""},{"$f":"IFERROR((VLOOKUP($D30,Prezzi,3,FALSE)),\"\")","v":""},"NONE",0,{"$f":"IFERROR(IF(AND($E30=0,$D30=\"NONE\"),\"\",VLOOKUP(CONSIP_Lotto5!$D30,Prezzi,7,FALSE)*$E30),\"Selezionare Tipologia Disco e Quantità\")","v":""},{"$f":"IF(AND($E30=0,$D30=\"NONE\"),\"\",VLOOKUP(CONSIP_Lotto5!$D30,Prezzi,7,FALSE)*$E30)","v":""},{"$f":"IF(AND(E30=0,$D30=\"NONE\"),\"\",VLOOKUP(CONSIP_Lotto5!$D30,Prezzi,5,FALSE))","v":""},{"$f":"IF(AND(E30=0,$D30=\"NONE\"),\"\",VLOOKUP(CONSIP_Lotto5!$D30,Prezzi,6,FALSE))","v":""},"add-on"]
["SSD da 400 GB con Endurance DWPD >= 0.9","MZ7KH480HAHQ-00005","V0231NH000000000","SSD_480G_SATA_6Gbps_Samsung_2.5in_SM883",2,{"$f":"IFERROR(IF(AND($E31=0,$D31=\"NONE\"),\"\",VLOOKUP(CONSIP_Lotto5!$D31,Prezzi,7,FALSE)*$E31),\"Selezionare Tipologia Disco e Quantità\")","v":556},{"$f":"IF(E31>2,VLOOKUP(CONSIP_Lotto5!$D31,Prezzi,7,FALSE)*($E31-2),\"Base Config\")","v":"Base Config"},{"$f":"IF(AND(E31=0,$D31=\"NONE\"),\"\",VLOOKUP(CONSIP_Lotto5!$D31,Prezzi,5,FALSE))","v":"Base Config"},{"$f":"IF(AND(E31=0,$D31=\"NONE\"),\"\",VLOOKUP(CONSIP_Lotto5!$D31,Prezzi,6,FALSE))","v":"Base Config"},"Base"]
["OpzHDD2TB ","","","NONE",0,{"$f":"IFERROR(IF(AND($E32=0,$D32=\"NONE\"),\"\",VLOOKUP(CONSIP_Lotto5!$D32,Prezzi,7,FALSE)*$E32),\"Selezionare Tipologia Disco e Quantità\")","v":""},{"$f":"IF(AND($E32=0,$D32=\"NONE\"),\"\",VLOOKUP(CONSIP_Lotto5!$D32,Prezzi,7,FALSE)*$E32)","v":""},{"$f":"IF(AND(E32=0,$D32=\"NONE\"),\"\",VLOOKUP(CONSIP_Lotto5!$D32,Prezzi,5,FALSE))","v":""},{"$f":"IF(AND(E32=0,$D32=\"NONE\"),\"\",VLOOKUP(CONSIP_Lotto5!$D32,Prezzi,6,FALSE))","v":""},"Base"]
["OpzHDD1TB ","","","NONE",0,"Base Config",{"$f":"IF(AND($E33=0,$D33=\"NONE\"),\"\",VLOOKUP(CONSIP_Lotto5!$D33,Prezzi,7,FALSE)*$E33)","v":""},{"$f":"IF(AND(E33=0,$D33=\"NONE\"),\"\",VLOOKUP(CONSIP_Lotto5!$D33,Prezzi,5,FALSE))","v":""},{"$f":"IF(AND(E33=0,$D33=\"NONE\"),\"\",VLOOKUP(CONSIP_Lotto5!$D33,Prezzi,6,FALSE))","v":""},"Base"]
["OpzHDD300GB ","","","NONE",0,{"$f":"IFERROR(IF(AND($E34=0,$D34=\"NONE\"),\"\",VLOOKUP(CONSIP_Lotto5!$D34,Prezzi,7,FALSE)*$E34),\"Selezionare Tipologia Disco e Quantità\")","v":""},{"$f":"IF(AND($E34=0,$D34=\"NONE\"),\"\",VLOOKUP(CONSIP_Lotto5!$D34,Prezzi,7,FALSE)*$E34)","v":""},{"$f":"IF(AND(E34=0,$D34=\"NONE\"),\"\",VLOOKUP(CONSIP_Lotto5!$D34,Prezzi,5,FALSE))","v":""},{"$f":"IF(AND(E34=0,$D34=\"NONE\"),\"\",VLOOKUP(CONSIP_Lotto5!$D34,Prezzi,6,FALSE))","v":""},"Base"]
["OpzSSD-RI1,6TB ","","","NONE",0,{"$f":"IFERROR(IF(AND($E35=0,$D35=\"NONE\"),\"\",VLOOKUP(CONSIP_Lotto5!$D35,Prezzi,7,FALSE)*$E35),\"Selezionare Tipologia Disco e Quantità\")","v":""},{"$f":"IF(AND($E35=0,$D35=\"NONE\"),\"\",VLOOKUP(CONSIP_Lotto5!$D35,Prezzi,7,FALSE)*$E35)","v":""},{"$f":"IF(AND(E35=0,$D35=\"NONE\"),\"\",VLOOKUP(CONSIP_Lotto5!$D35,Prezzi,5,FALSE))","v":""},{"$f":"IF(AND(E35=0,$D35=\"NONE\"),\"\",VLOOKUP(CONSIP_Lotto5!$D35,Prezzi,6,FALSE))","v":""},"Base"]
["OpzSSD-MU1,6TB ","","","NONE",0,"Base Config",{"$f":"IF(AND($E36=0,$D36=\"NONE\"),\"\",VLOOKUP(CONSIP_Lotto5!$D36,Prezzi,7,FALSE)*$E36)","v":""},{"$f":"IF(AND(E36=0,$D36=\"NONE\"),\"\",VLOOKUP(CONSIP_Lotto5!$D36,Prezzi,5,FALSE))","v":""},{"$f":"IF(AND(E36=0,$D36=\"NONE\"),\"\",VLOOKUP(CONSIP_Lotto5!$D36,Prezzi,6,FALSE))","v":""},"Base"]
["OpzSSD-RI800GB ","","","NONE",0,{"$f":"IFERROR(IF(AND($E37=0,$D37=\"NONE\"),\"\",VLOOKUP(CONSIP_Lotto5!$D37,Prezzi,7,FALSE)*$E37),\"Selezionare Tipologia Disco e Quantità\")","v":""},{"$f":"IF(AND($E37=0,$D37=\"NONE\"),\"\",VLOOKUP(CONSIP_Lotto5!$D37,Prezzi,7,FALSE)*$E37)","v":""},{"$f":"IF(AND(E37=0,$D37=\"NONE\"),\"\",VLOOKUP(CONSIP_Lotto5!$D37,Prezzi,5,FALSE))","v":""},{"$f":"IF(AND(E37=0,$D37=\"NONE\"),\"\",VLOOKUP(CONSIP_Lotto5!$D37,Prezzi,6,FALSE))","v":""},"Base"]
["OpzSSD-MU800GB ","","","NONE",0,"Base Config",{"$f":"IF(AND($E38=0,$D38=\"NONE\"),\"\",VLOOKUP(CONSIP_Lotto5!$D38,Prezzi,7,FALSE)*$E38)","v":""},{"$f":"IF(AND(E38=0,$D38=\"NONE\"),\"\",VLOOKUP(CONSIP_Lotto5!$D38,Prezzi,5,FALSE))","v":""},{"$f":"IF(AND(E38=0,$D38=\"NONE\"),\"\",VLOOKUP(CONSIP_Lotto5!$D38,Prezzi,6,FALSE))","v":""},"Base"]
["OpzSSD-RI400GB ","","","NONE",0,{"$f":"IFERROR(IF(AND($E39=0,$D39=\"NONE\"),\"\",VLOOKUP(CONSIP_Lotto5!$D39,Prezzi,7,FALSE)*$E39),\"Selezionare Tipologia Disco e Quantità\")","v":""},{"$f":"IF(AND($E39=0,$D39=\"NONE\"),\"\",VLOOKUP(CONSIP_Lotto5!$D39,Prezzi,7,FALSE)*$E39)","v":""},{"$f":"IF(AND(E39=0,$D39=\"NONE\"),\"\",VLOOKUP(CONSIP_Lotto5!$D39,Prezzi,5,FALSE))","v":""},{"$f":"IF(AND(E39=0,$D39=\"NONE\"),\"\",VLOOKUP(CONSIP_Lotto5!$D39,Prezzi,6,FALSE))","v":""},"Base"]
["RAID Controller",null,null,null,null,null,null,null,null,"Base"]
["8i_RAID",{"$f":"IFERROR((VLOOKUP($D41,Prezzi,2,FALSE)),\"\")","v":"S00RAID00001000"},{"$f":"IFERROR((VLOOKUP($D41,Prezzi,3,FALSE)),\"\")","v":"YZRA-01188-101"},"RAID_PM8204-8i_2G_12Gbps_6 (con Batteria)",1,null,{"$f":"IF($D41 = RAID_4G,(VLOOKUP(CONSIP_Lotto5!$D41,Prezzi,9,FALSE)*$E41),\"Base Config\")","v":"Base Config"},{"$f":"IF($D41 = RAID_4G,VLOOKUP(CONSIP_Lotto5!$D41,Prezzi,5,FALSE),\"Base Config\")","v":"Base Config"},{"$f":"IF(MID(D18,1,5) = \"6252N\",VLOOKUP(CONSIP_Lotto5!$D41,Prezzi,6,FALSE),\"Base Config\")","v":"Base Config"},"Base"]
["GPU",null,null,{"$f":"IF(AND($E43 > 0,$D43 <> \"NONE\",$E18 = 2),\"Con GPU necessarie 4 CPU e almeno 4 DIMM RAM\",\"\")","v":""},null,null,null,null,null,"add-on"]
["GPU",{"$f":"IFERROR((VLOOKUP($D43,Prezzi,2,FALSE)),\"\")","v":""},{"$f":"IFERROR((VLOOKUP($D43,Prezzi,3,FALSE)),\"\")","v":""},"NONE",0,null,{"$f":"IF(AND($E43=0,$D43=\"NONE\"),\"\",VLOOKUP(CONSIP_Lotto5!$D43,Prezzi,7,FALSE)*$E43)","v":""},{"$f":"IF(AND(E43=0,$D43=\"NONE\"),\"\",VLOOKUP(CONSIP_Lotto5!$D43,Prezzi,5,FALSE))","v":""},{"$f":"IF(AND(E43=0,$D43=\"NONE\"),\"\",VLOOKUP(CONSIP_Lotto5!$D43,Prezzi,6,FALSE))","v":""},"add-on"]
["Back Plane",null,null,null,null,null,null,null,null,"Hidden"]
["NVME_SSD_Back_Plane",{"$f":"IFERROR((VLOOKUP($D45,Prezzi,2,FALSE)),\"\")","v":""},{"$f":"IFERROR((VLOOKUP($D45,Prezzi,3,FALSE)),\"\")","v":""},{"$f":"IF(AND(E$30>0,D$30<>\"NONE\"),VLOOKUP(1,NVME_SSD_Back_Plane,2,FALSE),\"NONE\")","v":"NONE"},{"$f":"IF(E30>0,1,\"Auto-computing\")","v":"Auto-computing"},null,null,null,null,"Hidden"]
["HDD_Back_Plane1",{"$f":"IFERROR((VLOOKUP($D46,Prezzi,2,FALSE)),\"\")","v":""},{"$f":"IFERROR((VLOOKUP($D46,Prezzi,3,FALSE)),\"\")","v":""},{"$f":"IF(AND(E$30=0,D$30=\"NONE\"),VLOOKUP(1,HDD_Back_Plane1,2,FALSE),\"NONE\")","v":"FrontHDModuleBackPlane_12SAS_3.5x12_Support 4*HDD"},{"$f":"IF(E30=0,1,\"Auto-computing\")","v":1},null,null,null,null,"Hidden"]
["Sistema Operativo",null,null,null,null,null,null,null,null,"Base"]
["Sistema Operativo Windows Server 2019 Standard Edition 2CPU/16core con licenza OEM, comprensivo di licenza d’uso",{"$f":"IFERROR((VLOOKUP($D48,Prezzi,2,FALSE)),\"\")","v":""},{"$f":"IFERROR((VLOOKUP($D48,Prezzi,3,FALSE)),\"\")","v":""},"NONE",0,null,{"$f":"IF(AND($E48=0),\"\",VLOOKUP(CONSIP_Lotto5!$A48,Prezzi,7,FALSE)*$E48)","v":""},{"$f":"IF(AND(E48=0),\"\",VLOOKUP(CONSIP_Lotto5!$A48,Prezzi,5,FALSE))","v":""},{"$f":"IF(AND(E48=0),\"\",VLOOKUP(CONSIP_Lotto5!$A48,Prezzi,6,FALSE))","v":""},"Base"]
["Singola CAL Device per sistema Operativo Windows Server 2019 con licenza OEM, comprensivo di licenza d’uso","","","NONE",0,null,{"$f":"IF(AND($E49=0),\"\",VLOOKUP(CONSIP_Lotto5!$A49,Prezzi,7,FALSE)*$E49)","v":""},{"$f":"IF(AND(E49=0),\"\",VLOOKUP(CONSIP_Lotto5!$A49,Prezzi,5,FALSE))","v":""},{"$f":"IF(AND(E49=0),\"\",VLOOKUP(CONSIP_Lotto5!$A49,Prezzi,6,FALSE))","v":""},"Base"]
["Singola CAL User per sistema Operativo Windows Server 2016 con licenza OEM, comprensivo di licenza d’uso","","","NONE",0,null,{"$f":"IF(AND($E50=0),\"\",VLOOKUP(CONSIP_Lotto5!$A50,Prezzi,7,FALSE)*$E50)","v":""},{"$f":"IF(AND(E50=0),\"\",VLOOKUP(CONSIP_Lotto5!$A50,Prezzi,5,FALSE))","v":""},{"$f":"IF(AND(E50=0),\"\",VLOOKUP(CONSIP_Lotto5!$A50,Prezzi,6,FALSE))","v":""},"Base"]
["Licenses pack di 2 core per Windows Server 2019","","","NONE",0,null,{"$f":"IF(AND($E51=0),\"\",VLOOKUP(CONSIP_Lotto5!$A51,Prezzi,7,FALSE)*$E51)","v":""},{"$f":"IF(AND(E51=0),\"\",VLOOKUP(CONSIP_Lotto5!$A51,Prezzi,5,FALSE))","v":""},{"$f":"IF(AND(E51=0),\"\",VLOOKUP(CONSIP_Lotto5!$A51,Prezzi,6,FALSE))","v":""},"Base"]
["Sistema Operativo Windows Server 2019 Datacenter con licenza OEM, comprensivo di licenza d’uso","","","NONE",0,null,{"$f":"IF(AND($E52=0),\"\",VLOOKUP(CONSIP_Lotto5!$A52,Prezzi,7,FALSE)*$E52)","v":""},{"$f":"IF(AND(E52=0),\"\",VLOOKUP(CONSIP_Lotto5!$A52,Prezzi,5,FALSE))","v":""},{"$f":"IF(AND(E52=0),\"\",VLOOKUP(CONSIP_Lotto5!$A52,Prezzi,6,FALSE))","v":""},"Base"]
["Licenses pack di 2 core per Windows Server DC 2019","","","NONE",0,null,{"$f":"IF(AND($E53=0),\"\",VLOOKUP(CONSIP_Lotto5!$A53,Prezzi,7,FALSE)*$E53)","v":""},{"$f":"IF(AND(E53=0),\"\",VLOOKUP(CONSIP_Lotto5!$A53,Prezzi,5,FALSE))","v":""},{"$f":"IF(AND(E53=0),\"\",VLOOKUP(CONSIP_Lotto5!$A53,Prezzi,6,FALSE))","v":""},"Base"]
["Distribuzione del sistema operativo di tipo Open Source","","","NONE",0,null,{"$f":"IF(AND($E54=0),\"\",VLOOKUP(CONSIP_Lotto5!$A54,Prezzi,7,FALSE)*$E54)","v":""},{"$f":"IF(AND(E54=0),\"\",VLOOKUP(CONSIP_Lotto5!$A54,Prezzi,5,FALSE))","v":""},{"$f":"IF(AND(E54=0),\"\",VLOOKUP(CONSIP_Lotto5!$A54,Prezzi,6,FALSE))","v":""},"Base"]
["Alimentazione",null,null,null,null,null,null,null,null,"Hidden"]
["220V_Power",{"$f":"IFERROR((VLOOKUP($D56,Prezzi,2,FALSE)),\"\")","v":""},{"$f":"IFERROR((VLOOKUP($D56,Prezzi,3,FALSE)),\"\")","v":""},"PowerSupply_550W_Platinum_220VACor240VDC",4,null,"Base Config","Base Config","Base Config","Hidden"]
["Power_Cord",{"$f":"IFERROR((VLOOKUP($D57,Prezzi,2,FALSE)),\"\")","v":""},{"$f":"IFERROR((VLOOKUP($D57,Prezzi,3,FALSE)),\"\")","v":""},"PowerCord_1.9m_Bend_C13_EU",4,null,"Base Config","Base Config","Base Config","Hidden"]
["Varie",null,null,null,null,null,null,null,null,"Hidden"]
["Slide_rail",{"$f":"IFERROR((VLOOKUP($D59,Prezzi,2,FALSE)),\"\")","v":""},{"$f":"IFERROR((VLOOKUP($D59,Prezzi,3,FALSE)),\"\")","v":""},"Slider",1,null,null,null,null,"Hidden"]
["Installation_Guide",{"$f":"IFERROR((VLOOKUP($D60,Prezzi,2,FALSE)),\"\")","v":""},{"$f":"IFERROR((VLOOKUP($D60,Prezzi,3,FALSE)),\"\")","v":""},"Label_L_210x280mm",1,null,null,null,null,"Hidden"]
["Manutenzione",null,null,null,null,null,null,null,null,"Hidden"]
["Manutenzione",{"$f":"IFERROR((VLOOKUP($D62,Prezzi,2,FALSE)),\"\")","v":""},{"$f":"IFERROR((VLOOKUP($D62,Prezzi,3,FALSE)),\"\")","v":""},"Manutenzione 3 Anni",1,null,"Base Config","Base Config","Base Config","Hidden"]
["Servizio Opzionale",null,null,null,null,null,null,null,null,"one-shot"]
["Servizio di Hard Disk retention 36 mesi",{"$f":"IFERROR((VLOOKUP($D64,Prezzi,2,FALSE)),\"\")","v":0},{"$f":"IF((AND(E64=0,E65=1)),\"SELEZIONARE HDD RET. 36 MESI\",\"\")","v":""},"Servizio di Hard Disk retention 36 mesi",0,null,{"$f":"IF(AND($E64=1),VLOOKUP(CONSIP_Lotto5!$A64,Prezzi,7,FALSE),\"\")","v":""},{"$f":"IF(AND($E64=1),VLOOKUP(CONSIP_Lotto5!$A64,Prezzi,5,FALSE),\"\")","v":""},{"$f":"IF(AND($E64=1),VLOOKUP(CONSIP_Lotto5!$A64,Prezzi,6,FALSE),\"\")","v":""},"one-shot"]
["Servizio di Hard Disk retention 60 mesi",0,{"$f":"IF((AND(E64=1,E65=0,E66=1)),\"SELEZIONARE HDD RET. 60 MESI\",\"\")","v":""},"Servizio di Hard Disk retention 60 mesi",0,"",{"$f":"IF(AND($E65=1),VLOOKUP(CONSIP_Lotto5!$A65,Prezzi,7,FALSE),\"\")","v":""},{"$f":"IF(AND($E65=1),VLOOKUP(CONSIP_Lotto5!$A65,Prezzi,5,FALSE),\"\")","v":""},{"$f":"IF(AND($E65=1),VLOOKUP(CONSIP_Lotto5!$A65,Prezzi,6,FALSE),\"\")","v":""}]
["Estensione della manutenzione in garanzia delle apparecchiature per ulteriori 24 mesi",0,{"$f":"IF((AND(E65=1,E66=0)),\"SELEZIONARE EST. GARANZIA 24 MESI\",\"\")","v":""},"Estensione della manutenzione in garanzia delle apparecchiature per ulteriori 24 mesi",0,null,{"$f":"IF(AND($E66=1),VLOOKUP(CONSIP_Lotto5!$A66,Prezzi,7,FALSE),\"\")","v":""},{"$f":"IF(AND($E66=1),VLOOKUP(CONSIP_Lotto5!$A66,Prezzi,5,FALSE),\"\")","v":""},{"$f":"IF(AND($E66=1),VLOOKUP(CONSIP_Lotto5!$A66,Prezzi,6,FALSE),\"\")","v":""},"one-shot"]
["RACK & Varie",null,null,null,null,null,null,null,null,"one-shot"]
["Dispositivo UPS di tipo On-line doppia conversione, strutturato per il montaggio a rack da 19”, con: …......",{"$f":"IFERROR((VLOOKUP($D68,Prezzi,2,FALSE)),\"\")","v":""},{"$f":"IFERROR((VLOOKUP($D68,Prezzi,3,FALSE)),\"\")","v":""},"NONE",0,null,{"$f":"IF(AND($E68=0),\"\",VLOOKUP(CONSIP_Lotto5!$A68,Prezzi,7,FALSE)*$E68)","v":""},{"$f":"IF(AND(E68=0),\"\",VLOOKUP(CONSIP_Lotto5!$A68,Prezzi,5,FALSE))","v":""},{"$f":"IF(AND(E68=0),\"\",VLOOKUP(CONSIP_Lotto5!$A68,Prezzi,6,FALSE))","v":""},"one-shot"]
["Kit Graphical User Interface (GUI)","","","NONE",0,null,{"$f":"IF(AND($E69=0),\"\",VLOOKUP(CONSIP_Lotto5!$A69,Prezzi,7,FALSE)*$E69)","v":""},{"$f":"IF(AND(E69=0),\"\",VLOOKUP(CONSIP_Lotto5!$A69,Prezzi,5,FALSE))","v":""},{"$f":"IF(AND(E69=0),\"\",VLOOKUP(CONSIP_Lotto5!$A69,Prezzi,6,FALSE))","v":""},"one-shot"]
["Apparato Switch Kvm 16 porte","","","NONE",0,null,{"$f":"IF(AND($E70=0),\"\",VLOOKUP(CONSIP_Lotto5!$A70,Prezzi,7,FALSE)*$E70)","v":""},{"$f":"IF(AND(E70=0),\"\",VLOOKUP(CONSIP_Lotto5!$A70,Prezzi,5,FALSE))","v":""},{"$f":"IF(AND(E70=0),\"\",VLOOKUP(CONSIP_Lotto5!$A70,Prezzi,6,FALSE))","v":""},"one-shot"]
["Armadio tecnico realizzato con intelaiatura interna atta a supportare pannelli e chassis normalizzati standard ….","","","NONE",0,null,{"$f":"IF(AND($E71=0),\"\",VLOOKUP(CONSIP_Lotto5!$A71,Prezzi,7,FALSE)*$E71)","v":""},{"$f":"IF(AND(E71=0),\"\",VLOOKUP(CONSIP_Lotto5!$A71,Prezzi,5,FALSE))","v":""},{"$f":"IF(AND(E71=0),\"\",VLOOKUP(CONSIP_Lotto5!$A71,Prezzi,6,FALSE))","v":""},"one-shot"]
[null,null,null,null,null,null,null,null,null,"add-on"]
["Switch FC Opzionale",null,null,null,null,null,null,null,null,"add-on"]
[{"$f":"IF(AND(D74 <> \"NONE\",E74 > 0),\"SAN Switch\",)","v":0},{"$f":"IFERROR((VLOOKUP($D74,Prezzi,2,FALSE)),\"\")","v":""},{"$f":"IFERROR((VLOOKUP($D74,Prezzi,3,FALSE)),\"\")","v":""},"NONE",0,null,{"$f":"IF(AND($E74=0,$D74=\"NONE\"),\"\",VLOOKUP(CONSIP_Lotto5!$D74,Prezzi,7,FALSE)*$E74)","v":""},{"$f":"IF(AND(E74=0,$D74=\"NONE\"),\"\",VLOOKUP(CONSIP_Lotto5!$D74,Prezzi,5,FALSE))","v":""},{"$f":"IF(AND(E74=0,$D74=\"NONE\"),\"\",VLOOKUP(CONSIP_Lotto5!$D74,Prezzi,6,FALSE))","v":""},"add-on"]
[null,null,null,null,null,null,null,null,null,"add-on"]
["Storage Opzionale",null,null,null,null,null,null,null,null,"add-on"]
[{"$f":"IF(AND(D77 <> \"NONE\",E77 > 0),\"Storage\",)","v":0},{"$f":"IFERROR((VLOOKUP($D77,Prezzi,2,FALSE)),\"\")","v":""},{"$f":"IFERROR((VLOOKUP($D77,Prezzi,3,FALSE)),\"\")","v":""},"NONE",0,null,{"$f":"IF(AND($E77=0,$D77=\"NONE\"),\"\",VLOOKUP(CONSIP_Lotto5!$D77,Prezzi,7,FALSE)*$E77)","v":""},{"$f":"IF(AND(E77=0,$D77=\"NONE\"),\"\",VLOOKUP(CONSIP_Lotto5!$D77,Prezzi,5,FALSE))","v":""},{"$f":"IF(AND(E77=0,$D77=\"NONE\"),\"\",VLOOKUP(CONSIP_Lotto5!$D77,Prezzi,6,FALSE))","v":""},"add-on"]

{"sheet":"CONSIP_Storage","index":1,"n_rows":26,"n_cols":4,"rows_kept":26,"cut":false,"hidden":true,"merged":[]}
[]
[null,"Storage AFA INSPUR AS2600G2"]
[]
["Tipo","Descrizione","QTY","Capacità RAW"]
["Modello","Model0_G2_E02_2U25_EN",1]
["Controllerlo","Controller",2]
["Memoria","MEM_32G_ECC-RDIMM_E1",1]
["Dischi SSD","SSD_960G_SAS_12Gbps_Samsung_2.5in_2U25_E",24,{"$f":"+(C8*960)/1000","v":23.04}]
["HBA","HBA_2Port_FC16Gb_E",2]
["NIC","NIC_10Gbps_2Port_RJ45_Inspur_X540_PCIe_OCP_E",2]
["PowerSupply","PowerSupply_850W_Platinum_220VACor240VDC_110VAC",2]
["PowerCord","PowerCord_1.9m_Bend_C13_EU",2]
["Software","Software_Intelligent Base Software_AS2600G2(25)_EN",1]
[]
[null,"Storage INSPUR AS2600G2"]
[]
["Tipo","Descrizione","QTY","Capacità RAW"]
["Modello","Model0_G2_E02_2U25_EN",1]
["Controllerlo","Controller",2]
["Memoria","MEM_32G_ECC-RDIMM_E1",1]
["Dischi SSD","HDD_1.2T_SAS_12Gbps_10Krpm_2.5in_2U25_E",24,{"$f":"+(C21*1.2)","v":28.799999999999997}]
["HBA","HBA_2Port_FC16Gb_E",2]
["NIC","NIC_10Gbps_2Port_RJ45_Inspur_X540_PCIe_OCP_E",2]
["PowerSupply","PowerSupply_850W_Platinum_220VACor240VDC_110VAC",2]
["PowerCord","PowerCord_1.9m_Bend_C13_EU",2]
["Software","Software_Intelligent Base Software_AS2600G2(25)_EN",1]

{"sheet":"Valori","index":2,"n_rows":122,"n_cols":30,"rows_kept":122,"cut":false,"hidden":true,"merged":[[99,1,100,1],[102,1,103,1],[105,1,106,1],[84,1,85,1],[87,1,88,1],[90,1,91,1],[93,1,94,1],[96,1,97,1],[51,1,52,1],[54,1,55,1],[75,1,76,1],[78,1,79,1],[81,1,82,1],[36,1,37,1],[39,1,40,1],[42,1,43,1],[45,1,46,1],[48,1,49,1],[115,1,117,1],[108,1,110,1],[3,1,4,1],[57,1,61,1],[119,1,121,1],[22,1,23,1],[28,1,29,1],[19,1,20,1],[66,1,71,1],[6,1,7,1],[9,1,10,1],[12,1,14,1],[63,1,64,1],[25,1,26,1],[16,1,17,1],[33,1,34,1]]}
[null,"Parametro","NONE"]
[null,"NONE",0,0,null,"[Green]+#.##0,00 [$€-it-IT];[Red]-#.##0,00 [$€-it-IT]"]
[]
[null,"Tipo Acquisto",null,"Nuovo Server"]
[null,null,null,"Upgrade Server"]
[null,null,null,null,null,null,null,"In caso NVMe"]
[null,"CPU",{"$f":"MID(D7,1,FIND(\"(\",D7)-2)","v":"5218"},{"$f":"+Prezzi!A6","v":"5218 (22M cache, 16 Cores, 32 Threads, 2.30 GHz, (125W), 10.40 GT/sec Intel® UPI) "},null,2,4,4]
[null,null,"6252N",{"$f":"+Prezzi!A7","v":"6252N (35.75M cache, 24 Cores, 48 Threads, 2.30 GHz, (150W), 10.40 GT/sec Intel® UPI) "}]
[null,null,null,null,null,null,null,"In caso NVMe"]
[null,"RAM",null,{"$f":"+Prezzi!A8","v":"32GB DDR4-2933MHz RDIMM (Configurabile solo in caso di nuovo server)"},null,2,2,4,6,8,10,12,14,16,18,20,22,24]
[null,null,null,{"$f":"+Prezzi!A9","v":"64GB DDR4-2933MHz RDIMM (Configurabile solo in caso di nuovo server)"},null,4,2,4,6,8,10,12,14,16,18,20,22,24,26,28,30,32,34,36,38,40,42,44,46,48]
[]
[null,"NVME_SSD",null,"NONE",null,null,0,1,2,3,4,5,6,7,8,9,10]
[null,null,null,{"$f":"+Prezzi!A24","v":"NVMe/SSD_P451 2.5 2TB Ent NVMe U.2 HS SSD in 3.5 - \"Mixed Use\""}]
[null,null,null,{"$f":"+Prezzi!A25","v":"NVMe/SSD_P451 2.5 1TB Ent NVMe U.2 HS SSD in 3.5 - \"Mixed Use\" "}]
[]
[null,"OpzGigabit",null,"NONE"]
[null,null,null,{"$f":"+Prezzi!A10","v":"Network Interface card Dual-Port PCI 1000 MBPS Full Duplex"}]
[]
[null,"OpzGigabit10Gbps ",null,"NONE"]
[null,null,null,{"$f":"+Prezzi!A11","v":"Network Interface card Dual-Port PCI 10 GBPS Full Duplex SFP+"}]
[]
[null,"OpzGigabit25Gbps",null,"NONE",null,"PCI_QTY",0,1,2]
[null,null,null,{"$f":"+Prezzi!A12","v":"Network Interface Card Dual-Port PCI 25 GBPS Full Duplex SFP"}]
[]
[null,"OpzGigabit10Gbps_CNA",null,"NONE"]
[null,null,null,{"$f":"+Prezzi!A13","v":"QLogic Converged Network Adapter Dual Port 10 GBPS SFP"}]
[]
[null,"HBA",null,"NONE"]
[null,null,null,{"$f":"+Prezzi!A14","v":"QLE2562 Dual Port 8Gb Fibre Channel HBA by Qlogic"}]
[]
[null,"BaseConfigSSD",null,{"$f":"+Prezzi!A15","v":"SSD_480G_SATA_6Gbps_Samsung_2.5in_SM883"}]
[]
[null,"OpzHDD2TB ",null,"NONE"]
[null,null,null,{"$f":"+Prezzi!A16","v":"SAS “Hot Swap” capacità 2.4TB, SAS 12Gb, 10 krpm"}]
[]
[null,"OpzHDD1TB ",null,"NONE"]
[null,null,null,{"$f":"+Prezzi!A17","v":"SAS “Hot Swap” capacità 1.2TB, SAS 12Gb, 10 krpm"}]
[]
[null,"OpzHDD300GB ",null,"NONE"]
[null,null,null,{"$f":"+Prezzi!A18","v":"SAS “Hot Swap” capacità 300 GB, SAS 12Gb, 10 krpm"}]
[null,null,null,null,null,null,0,1,2,3,4,5,6,7,8,9,10,11,12,13,14,15,16,17,18,19,20,21,22]
[null,"OpzSSD-RI1,6TB ",null,"NONE"]
[null,null,null,{"$f":"+Prezzi!A19","v":"SAS/SSD \"Read Intensive - Hot Swap” capacità 1,92TB, - DWPD > 0.9"}]
[]
[null,"OpzSSD-MU1,6TB ",null,"NONE"]
[null,null,null,{"$f":"+Prezzi!A20","v":"SAS/SSD \"Mixed Use - Hot Swap” capacità 1,6TB, - DWPD > 3.0      "}]
[]
[null,"OpzSSD-RI800GB ",null,"NONE"]
[null,null,null,{"$f":"+Prezzi!A21","v":"SAS/SSD \"Read Intensive - Hot Swap” capacità 960GB, - DWPD > 0.9"}]
[]
[null,"OpzSSD-MU800GB ",null,"NONE"]
[null,null,null,{"$f":"+Prezzi!A22","v":"SAS/SSD \"Mixed Use - Hot Swap” capacità 800GB, - DWPD > 3.0"}]
[]
[null,"OpzSSD-RI400GB ",null,"NONE"]
[null,null,null,{"$f":"+Prezzi!A23","v":"SAS/SSD \"Read Intensive - Hot Swap” capacità 480GB, - DWPD > 0.9"}]
[]
[null,"GPU",null,"NONE"]
[null,null,null,{"$f":"+Prezzi!A28","v":"Nvidia_Tesla-P100-PCIe_16G"}]
[null,null,null,{"$f":"+Prezzi!A29","v":"Nvidia_Tesla-T4_16G"},null,null,0,1]
[null,null,null,{"$f":"+Prezzi!A30","v":"Nvidia_Tesla-V100-PCIe_16G"}]
[null,null,null,{"$f":"+Prezzi!A31","v":"Nvidia_Tesla-V100-PCIe_32G"}]
[]
[null,"RAID Controller",null,{"$f":"+Prezzi!A26","v":"RAID_PM8204-8i_2G_12Gbps_6 (con Batteria)"}]
[null,null,null,{"$f":"+Prezzi!A27","v":"RAID_PM8204-8i_4G_12Gbps_6 (con Batteria)"}]
[]
[null,"HDD_Back_Plane1",{"$f":"IF(OR(Total_SSD_SAS_Disk=E67,AND(Total_SSD_SAS_Disk<E67)),1,0)","v":1},{"$f":"\"FrontHDModuleBackPlane_12SAS_3.5x12_Support \"&E67&\"*HDD\"","v":"FrontHDModuleBackPlane_12SAS_3.5x12_Support 4*HDD"},4]
[null,null,{"$f":"VALUE(IF(OR(Total_SSD_SAS_Disk=E68,AND(Total_SSD_SAS_Disk>E67,Total_SSD_SAS_Disk<E68)),1,0))","v":0},"FrontHDModuleBackPlane_12SAS_3.5x12_Support 8*HDD",8]
[null,null,{"$f":"VALUE(IF(OR(Total_SSD_SAS_Disk=E69,AND(Total_SSD_SAS_Disk>E68,Total_SSD_SAS_Disk<E69)),1,0))","v":0},"FrontHDModuleBackPlane_12SAS_3.5x12_Support 12*HDD",12]
[null,null,{"$f":"VALUE(IF(OR(Total_SSD_SAS_Disk=E70,AND(Total_SSD_SAS_Disk>E69,Total_SSD_SAS_Disk<E70)),1,0))","v":0},"FrontHDModuleBackPlane_12SAS_3.5x12_Support 16*HDD",16]
[null,null,{"$f":"VALUE(IF(OR(Total_SSD_SAS_Disk=E71,AND(Total_SSD_SAS_Disk>E70,Total_SSD_SAS_Disk<E71)),1,0))","v":0},"FrontHDModuleBackPlane_12SAS_3.5x12_Support 20*HDD",20]
[null,null,{"$f":"VALUE(IF(OR(Total_SSD_SAS_Disk=E72,AND(Total_SSD_SAS_Disk>E71,Total_SSD_SAS_Disk<E72)),1,0))","v":0},"FrontHDModuleBackPlane_12SAS_3.5x12_Support 24*HDD",24]
[]
[null,"NVME_SSD_Back_Plane",1,"FrontHDModuleBackPlane_12SAS or 12U.2_3.5x12_Support NVME_QTY*U.2 and QTY*HDD"]
[]
[null,"W2019_STD",null,"NONE",null,null,0,1]
[null,null,null,{"$f":"+Prezzi!A35","v":"Sistema Operativo Windows Server 2019 Standard Edition 2CPU/16core con licenza OEM, comprensivo di licenza d’uso"}]
[]
[null,"W2019_CAL_Device",null,"NONE",null,null,0,1]
[null,null,null,{"$f":"+Prezzi!A36","v":"Singola CAL Device per sistema Operativo Windows Server 2019 con licenza OEM, comprensivo di licenza d’uso"}]
[]
[null,"W2019_CAL_User",null,"NONE"]
[null,null,null,{"$f":"+Prezzi!A37","v":"Singola CAL User per sistema Operativo Windows Server 2016 con licenza OEM, comprensivo di licenza d’uso"}]
[]
[null,"W2019_STD_2Cores_Pack",null,"NONE"]
[null,null,null,{"$f":"+Prezzi!A38","v":"Licenses pack di 2 core per Windows Server 2019"}]
[]
[null,"W2019_DC",null,"NONE"]
[null,null,null,{"$f":"+Prezzi!A39","v":"Sistema Operativo Windows Server 2019 Datacenter con licenza OEM, comprensivo di licenza d’uso"}]
[]
[null,"W2019_DC_2Cores_Pack",null,"NONE"]
[null,null,null,{"$f":"+Prezzi!A40","v":"Licenses pack di 2 core per Windows Server DC 2019"}]
[]
[null,"Open_Source",null,"NONE"]
[null,null,null,{"$f":"+Prezzi!A41","v":"Distribuzione del sistema operativo di tipo Open Source"}]
[]
[null,"UPS",null,"NONE"]
[null,null,null,{"$f":"+Prezzi!A32","v":"Dispositivo UPS di tipo On-line doppia conversione, strutturato per il montaggio a rack da 19”, con: …......"},"UPS",null,0]
[null,null,null,null,null,null,1]
[null,"GUI",null,"NONE",null,null,2]
[null,null,null,{"$f":"+Prezzi!A33","v":"Kit Graphical User Interface (GUI)"},"Kit (GUI)"]
[]
[null,"KVM",null,"NONE"]
[null,null,null,{"$f":"+Prezzi!A34","v":"Apparato Switch Kvm 16 porte"},"Switch Kvm 16 porte"]
[]
[null,"Armadio",null,"NONE"]
[null,null,null,{"$f":"+Prezzi!A45","v":"Armadio tecnico realizzato con intelaiatura interna atta a supportare pannelli e chassis normalizzati standard …."},"Rack"]
[]
[null,"Servizio_Opzionale",null,{"$f":"+Prezzi!A42","v":"Servizio di Hard Disk retention 36 mesi"}]
[null,null,null,{"$f":"+Prezzi!A43","v":"Servizio di Hard Disk retention 60 mesi"},null,null,"SI"]
[null,null,null,{"$f":"+Prezzi!A44","v":"Estensione della manutenzione in garanzia delle apparecchiature per ulteriori 24 mesi"},null,null,"NO"]
[]
[]
[]
[]
[null,"SAN Switch",null,"NONE",null,null,0]
[null,null,null,{"$f":"+Prezzi!A49","v":"Inspur 8 ports SAN switch 8500-16Gb"},null,null,1]
[null,null,null,{"$f":"+Prezzi!A50","v":"Inspur 8 ports SAN switch 8500-32Gb"},null,null,2]
[]
[null,"STORAGE",null,"NONE",null,null,0]
[null,null,null,{"$f":"+Prezzi!A52","v":"Storage Inspur AS2600G2 - 23TB RAW SSD (All Flash)"},null,null,1]
[null,null,null,{"$f":"+Prezzi!A53","v":"Storage Inspur AS2600G2 - 28TB RAW SAS"},null,null,2]

{"sheet":"L5Nxx","index":3,"n_rows":33,"n_cols":4,"rows_kept":33,"cut":false,"hidden":true,"merged":[[1,0,1,3],[3,0,3,3]]}
[]
["La colonna “C/S” indica:\n“C” - la componente opzionale potrà essere acquistata solo in maniera contestuale all’apparecchiatura;\n“S” - la componente opzionale potrà essere acquistata sia in maniera contestuale all’apparecchiatura sia successivamente (nell’arco di 12 mesi dalla data di accettazione della fornitura)"]
[]
["la dimensione dei dischi e delle memorie interne (ad esclusione della componente opzionale RAM) presenti nelle componenti opzionali può variare fino al 10% in difetto o al 50% in eccesso qualora la dimensione riportata in tabella non sia fra le componenti costituenti il server oggetto di offerta."]
["4.2.5 Lotto 5"]
["N°","Denominazione delle componenti opzionali","C/S","Descrizione delle caratteristiche tecniche minime"]
["L5N02 ","Kit n. 2 Processori aggiuntivi","S","n. 2 processori aggiuntivi della stessa tipologia dei processori installati, comprendenti tutta la componentistica meccanica, elettrica ed elettronica, mantenendo inalterate le funzionalità del sottosistema di I/O della configurazione iniziale."]
["L5N03 ","OpzRAM32GB ","S","Modulo di espansione di 32GB di memoria RAM, comprendente tutta la componentistica meccanica, elettrica ed elettronica."]
["L5N04 ","OpzRAM64GB ","S","Modulo di espansione di 64GB di memoria RAM, comprendente tutta la componentistica meccanica, elettrica ed elettronica."]
["L5N05 ","OpzGigabit ","S","Controller aggiuntivo dual-port PCI per Network Gigabit-Ethernet 10/100/1000-Mbps full-duplex."]
["L5N06 ","OpzGigabit10Gbps ","S","Controller aggiuntivo dual port PCI per Network Gigabit- Ethernet di almeno 10 Gbit o migliorativa, fullduplex, con 2 moduli ottici 10 Gbps short-range SFP+."]
["L5N07 ","OpzGigabit25Gbps ","S","Controller aggiuntivo dual port PCI per Network Gigabit- Ethernet di almeno 25 Gbit o migliorativa, fullduplex, con 2 moduli ottici 25 Gbps short-range SFP+."]
["L5N08","OpzGigabit10GbpsCNA","S","Controller aggiuntivo dual port PCI per Network Gigabit- Ethernet di almeno 10 Gbit o migliorativa, di tipo CNA, abilitata al FCoE, con 2 moduli ottici da 10 Gbps short-range SFP+"]
["L5N09 ","OpzFibreChannel ","S","Scheda SAN dual-port Fibre Channel min. 8Gbps, con connessione SFP+ comprensiva di transceiver."]
["L5N10 ","OpzHDD2TB ","S","Unità disco interna aggiuntiva di tipo SAS “hot swap” di 2TB, con transfer teorico a 6Gb e velocità di rotazione di almeno 10 krpm."]
["L5N11 ","OpzHDD1TB ","S","Unità disco interna aggiuntiva di tipo SAS “hot swap” di 1TB, con transfer teorico a 6Gb e velocità di rotazione di almeno 10 krpm."]
["L5N12 ","OpzHDD300GB ","S","Unità disco interna aggiuntiva di tipo SAS “hot swap” di 300 GB, con transfer teorico a 6Gb e velocità di rotazione di almeno 10 krpm."]
["L5N13 ","OpzSSD-RI1,6TB ","S","Unità memoria interna aggiuntiva di tipo SAS SSD Read Intensive “hot swap” di 1,6TB. Endurance DWPD >=0.9 "]
["L5N14 ","OpzSSD-MU1,6TB ","S","Unità memoria interna aggiuntiva di tipo SAS SSD Mixed Use “hot swap” di 1,6TB. Endurance DWPD >=3.0"]
["L5N15 ","OpzSSD-RI800GB ","S","Unità memoria interna aggiuntiva di tipo SAS SSD Read Intensive “hot swap” di 800GB. Endurance DWPD >=0.9"]
["L5N16 ","OpzSSD-MU800GB ","S","Unità memoria interna aggiuntiva di tipo SAS SSD Mixed Use “hot swap” di 800GB. Endurance DWPD >=3.0"]
["L5N17 ","OpzSSD-RI400GB ","S","Unità memoria interna aggiuntiva di tipo SAS SSD Read Intensive “hot swap” di 400GB. Endurance DWPD >=0.9"]
["L5N18 ","OpzUps (3000VA) ","C","Dispositivo UPS di tipo On-line doppia conversione, strutturato per il montaggio a rack da 19”, con:\n- potenza di almeno 3.000 VA/2.700W;\n- autonomia di almeno 5 minuti a pieno carico;\n- con batterie senza manutenzione sostituibili a caldo (hotswap);\n- ingresso monofase;\n- bypass automatico e manuale;\n- porta di comunicazione USB o RS232 e 10/100 BaseT RJ45;\n- test di batteria automatico e manuale;\n- funzioni di autodiagnostica;\n- gestione SNMP;\n- software di gestione in ambiente Windows e Linux per la configurazione dei parametri operativi e per monitoraggio;\n- possibilità di programmare l'accensione e lo shutdown automatico;\n- possibilità d'impostazione, diretta o da software, della modalità di funzionamento più adeguata alla qualità di alimentazione;\n- implementazione della funzionalità di spegnimento UPS da pulsante remoto di emergenza.\nIl dispositivo UPS dovrà esser fornito e consegnato con tutti gli accessori (rotaie e guide telescopiche, viti specifiche, dadi, etc.) atti al montaggio dell’apparecchiatura ed alla sua estraibilità dal rack per le opportune attività di ispezione/manutenzione."]
["L5N19 ","OpzGUI ","C","Kit Graphical User Interface (GUI), contenuto in un cassetto da rack estraibile con guide telescopiche (dimensione massima 1U), contenente un monitor TFT 17” con risoluzioni pari a 1280x800 o superiori, ripiegabile a scomparsa, tastiera e dispositivo di puntamento, completamente compatibili con l’apparecchiatura server offerta e con la scheda grafica prevista nei precedenti paragrafi delle relative tipologie dei singoli lotti della relativa tabella, comprensivi di cavi di interfaccia e di alimentazione."]
["L5N20 ","OpzKVM ","C","Apparato switch Kvm 16 porte overIP con possibilità di gestione da remoto attraverso interfaccia Ethernet comprensiva di staffe, di cavi, di accessori per il montaggio a rack e dei cavi di collegamento tra KVM e server oggetto di fornitura. Controllabile da remoto attraverso opportunità console di gestione."]
["L5N21 ","OpzWinServSTD ","S","Sistema Operativo Windows Server 2019 Standard Edition 2CPU/16core con licenza OEM, comprensivo di licenza d’uso, completo dell’ultima versione di “Service Pack” disponibile al momento dell’installazione, nonché di tutti i driver e le utilities necessarie per il corretto funzionamento dell’apparecchiatura base. Dovranno essere inoltre forniti i supporti di installazione e la manualistica originale."]
["L5N22 ","OpzDeviceCal ","S","Singola CAL Device per sistema Operativo Windows Server 2019 con licenza OEM, comprensivo di licenza d’uso."]
["L5N23 ","OpzUserCal ","S","Singola CAL User per sistema Operativo Windows Server 2016 con licenza OEM, comprensivo di licenza d’uso."]
["L5N24 ","OpzWinServSTD2core ","S","Licenses pack di 2 core per Windows Server 2019."]
["L5N25 ","OpzWinServDC ","S","Sistema Operativo Windows Server 2019 Datacenter con licenza OEM, comprensivo di licenza d’uso, completo dell’ultima versione di “Service Pack” disponibile al momento dell’installazione, nonché di tutti i driver e le utilities necessarie per il corretto funzionamento dell’apparecchiatura base.\nDovranno essere inoltre forniti i supporti di installazione e la manualistica originale."]
["L5N26 ","OpzWinServDC2core ","S","Licenses pack di 2 core per Windows Server DC 2019."]
["L5N27 ","OpzOpenSource ","C","Distribuzione del sistema operativo di tipo Open Source compatibile con l’apparecchiatura offerta comprensiva almeno di:\n• codice sorgente del sistema operativo;\n• abilitazione ad un numero illimitato di utenti;\n• software per la gestione di configurazioni cluster (incluso cluster file system) ed eventuale licenza d’uso;\n• software o utilities di configurazione e installazione ed eventuale licenza d’uso;\n• supporti di installazione (media) e manualistica.\nDovranno inoltre essere fornite tutte le licenze d’uso di eventuale software commerciale compreso all’interno della distribuzione."]
["L5N30 ","OpzRack ","C","Armadio tecnico realizzato con intelaiatura interna atta a supportare pannelli e chassis normalizzati standard, con dimensioni di 482,5 mm (19”) di larghezza, e multipli di 44,5 mm (U – unit) in altezza, con le seguenti caratteristiche minime:\n- profondità esterna utile di almeno 1000 mm ed interna di almeno 950 mm;\n- altezza totale interna di almeno 42U utili;\n- dotato di almeno due barre di alimentazione (multiprese) con almeno 12 prese multistandard schuko + Bipasso ITA (10A+16A), protette da interruttori magneto-termici;\n- porte anteriori e posteriori in lamiera d’acciaio ugualmente grigliate almeno al 78%;\n- opportuno collegamento di messa a terra con relativi cavi giallo-verdi;\n- parete anteriore e posteriore asportabile;\n- ingresso posteriore passacavi o di una opportuna apertura posteriore con piastra di chiusura;\n- pareti laterali in lamiera d’acciaio, asportabili e fissate alla struttura portante dell’armadio a mezzo di viti;\n- parete anteriore apribile a 180° e rimovibile, con serratura a chiave;\n- parete posteriore apribile a 180° e rimovibile, con serratura a chiave;\n- opportuni dispositivi per la messa a livello della struttura;\n- dispositivo anti-ribaltamento;\n- struttura certificata per almeno 1000 kg di carico statico;\n- smontabile;\n- con 4 ruote;\n- tetto cieco in lamiera d’acciaio, in due parti per consentire entrata di cavi dall’alto; asportabile e fissato alla struttura portante dell’armadio a mezzo di viti coperte da tappi di gomma;\n- fondo aperto con capacità di ripartizione del carico e allestito con piedini di livellamento;\nIl rack dovrà contenere tutte le minuterie metalliche, gli adattatori, le staffe tali da permettere l’alloggiabilità sia delle macchine acquisite tramite questa iniziativa sia delle apparecchiature che l’Amministrazione vorrà ospitare nel rack."]

{"sheet":"Prezzi","index":4,"n_rows":53,"n_cols":23,"rows_kept":53,"cut":false,"hidden":true,"merged":[]}
[]
["Componente","Product Code","Main Part PN",null,"Parametro Consip","Attributo ","Valore inserito (Prezzo Unitario)","Kit Base","Differenza","Kit Aggiuntivi","Differenza 4 CPU"]
[{"$f":"+G3","v":"INSPUR NF8480M5"},null,null,1,"Marca e modello del server offerto","Marca e modello del server offerto","INSPUR NF8480M5",null,null,0]
[{"$f":"+G4","v":"Intel Xeon Gold 5218"},null,null,2,"Marca e modello del processore offerto","Marca e modello del processore offerto","Intel Xeon Gold 5218",null,null,0]
[null,null,null,3,"L5N01","Server rackable quad-processore base ",3554,null,null,0]
["5218 (22M cache, 16 Cores, 32 Threads, 2.30 GHz, (125W), 10.40 GT/sec Intel® UPI) ","S00CPU00000T","V00106Y000000000",4,"L5N02","Kit CPU 5218",1382,"Base Config","Base Config",{"$f":"+G6","v":1382},{"$f":"+J6","v":1382}]
["6252N (35.75M cache, 24 Cores, 48 Threads, 2.30 GHz, (150W), 10.40 GT/sec Intel® UPI) ",null,"V00108V000000000","4a","L5N02a","Kit CPU 6252N",2475,{"$f":"+G7","v":2475},{"$f":"+G7-G6","v":1093},{"$f":"+G7*2","v":4950},{"$f":"+J7-G6","v":3568},"Price To be defined/confirmed. It's the competitor price for 2 CPUs"]
["32GB DDR4-2933MHz RDIMM (Configurabile solo in caso di nuovo server)","S00MEM000008","V00407R000000000",5,"L5N03","OpzRam32GB ",194,null,null,{"$f":"+G8","v":194},null,{"$f":"+G8*2","v":388}]
["64GB DDR4-2933MHz RDIMM (Configurabile solo in caso di nuovo server)","S00MEM000000","V00404E000000000",6,"L5N04","OpzRam64GB ",411,null,{"$f":"+G9-G8","v":217},{"$f":"+G9*2","v":822},null,{"$f":"+G9*2","v":822}]
["Network Interface card Dual-Port PCI 1000 MBPS Full Duplex","SPT0POC00W01","V05HS10000000025",7,"L5N05","OpzGigabit ",27]
["Network Interface card Dual-Port PCI 10 GBPS Full Duplex SFP+","SPT0POC00W0L","YZCA-00606-102",8,"L5N06","OpzGigabit10Gbps ",188]
["Network Interface Card Dual-Port PCI 25 GBPS Full Duplex SFP","MCX4121A-ACAT","V022005000000000",9,"L5N07","OpzGigabit25Gbps ",1034]
["QLogic Converged Network Adapter Dual Port 10 GBPS SFP","BC0110402-08C","V022009000000000",10,"L5N08","OpzGigabit10Gbps CNA ",332]
["QLE2562 Dual Port 8Gb Fibre Channel HBA by Qlogic","SPT0POC00B06","V25YT10000000000",11,"L5N09","OpzFibreChannel ",256]
["SSD_480G_SATA_6Gbps_Samsung_2.5in_SM883","MZ7KH480HAHQ-00005","V0231NH000000000",null,"Base Config","Base Config",278]
["SAS “Hot Swap” capacità 2.4TB, SAS 12Gb, 10 krpm","SPT0STG25S16","V0231B5000000000",12,"L5N10","OpzHDD2TB ",188]
["SAS “Hot Swap” capacità 1.2TB, SAS 12Gb, 10 krpm","SPT0STG25001","V0230U2000000000",13,"L5N11","OpzHDD1TB ",110]
["SAS “Hot Swap” capacità 300 GB, SAS 12Gb, 10 krpm","SPT0STG25S0D","V0230WA000000000",14,"L5N12","OpzHDD300GB ",83]
["SAS/SSD \"Read Intensive - Hot Swap” capacità 1,92TB, - DWPD > 0.9","MZ-ILT1T90","V02316C000000000",15,"L5N13","OpzSSD-RI1,6TB ",742]
["SAS/SSD \"Mixed Use - Hot Swap” capacità 1,6TB, - DWPD > 3.0      ","DC-SS530","V02318L000000000",16,"L5N14","OpzSSD-MU1,6TB ",1340,null,null,null,null,"da chiarire con mail di Vincent"]
["SAS/SSD \"Read Intensive - Hot Swap” capacità 960GB, - DWPD > 0.9","MZ-ILT9600","V02316A000000000",17,"L5N15","OpzSSD-RI800GB ",595]
["SAS/SSD \"Mixed Use - Hot Swap” capacità 800GB, - DWPD > 3.0","DCSS530","V02318M000000000",18,"L5N16","OpzSSD-MU800GB ",908,null,null,null,null,"da chiarire con mail di Vincent"]
["SAS/SSD \"Read Intensive - Hot Swap” capacità 480GB, - DWPD > 0.9","MZILS480HEGR-00007","V0230M9000000000",19,"L5N17","OpzSSD-RI400GB ",321]
["NVMe/SSD_P451 2.5 2TB Ent NVMe U.2 HS SSD in 3.5 - \"Mixed Use\"","S00HDD000009000",null,"19a","Add-on","OpzNVME1,6TB ",874,null,null,null,null,"Price To be confirmed. Our proposed price for Lot6"]
["NVMe/SSD_P451 2.5 1TB Ent NVMe U.2 HS SSD in 3.5 - \"Mixed Use\" ","S00HDD000017000",null,"19b","Add-on","OpzNVME800GB ",478,null,null,null,null,"Price To be confirmed. Our proposed price for Lot6"]
["RAID_PM8204-8i_2G_12Gbps_6 (con Batteria)","S00RAID00001000","YZRA-01188-101",null,"Base","RAID 8i_2G_12Gbps",250,"Base Config","Base Config",null,null,"PRICE TO BE DEFINED"]
["RAID_PM8204-8i_4G_12Gbps_6 (con Batteria)","S00RAID00002000","YZRA-01188-102","19c","Add-on","RAID 8i_4G_12Gbps",{"$f":"262+80","v":342},{"$f":"+G27","v":342},{"$f":"+H27-G26","v":92},null,null,"PRICE TO BE DEFINED"]
["Nvidia_Tesla-P100-PCIe_16G","X01700C000000000 ",null,"19d","Add-on","P100-PCIe_16G",5480,null,null,null,null,"PRICE TO BE DEFINED"]
["Nvidia_Tesla-T4_16G","X017016000000000",null,"19e","Add-on","T4_16G",1959,null,null,null,null,"PRICE TO BE DEFINED"]
["Nvidia_Tesla-V100-PCIe_16G","X01700L000000000 ",null,"19f","Add-on","V100-PCIe_16G",7037,null,null,null,null,"PRICE TO BE DEFINED"]
["Nvidia_Tesla-V100-PCIe_32G","X01700X000000000 ",null,"19g","Add-on","V100-PCIe_32G",7944,null,null,null,null,"PRICE TO BE DEFINED"]
["Dispositivo UPS di tipo On-line doppia conversione, strutturato per il montaggio a rack da 19”, con: …......",null,null,20,"L5N18 ","OpzUps (3000VA) ",374]
["Kit Graphical User Interface (GUI)",null,null,21,"L5N19","OpzGUI ",455]
["Apparato Switch Kvm 16 porte",null,null,22,"L5N20","OpzKVM ",512]
["Sistema Operativo Windows Server 2019 Standard Edition 2CPU/16core con licenza OEM, comprensivo di licenza d’uso","INS-WIN-STD",null,23,"L5N21","OpzWinServSTD ",707]
["Singola CAL Device per sistema Operativo Windows Server 2019 con licenza OEM, comprensivo di licenza d’uso","INS-WIN-DCAL",null,24,"L5N22","OpzDeviceCal ",25]
["Singola CAL User per sistema Operativo Windows Server 2016 con licenza OEM, comprensivo di licenza d’uso","INS-WIN-UCA",null,25,"L5N23","OpzUserCal ",32]
["Licenses pack di 2 core per Windows Server 2019","INS-WIN-STD2CORE",null,26,"L5N24","OpzWinServSTD2core ",95]
["Sistema Operativo Windows Server 2019 Datacenter con licenza OEM, comprensivo di licenza d’uso","INS-WIN-DC",null,27,"L5N25","OpzWinServDC ",4252]
["Licenses pack di 2 core per Windows Server DC 2019","INS-WIN-DC2C",null,28,"L5N26","OpzWinServDC2core ",545]
["Distribuzione del sistema operativo di tipo Open Source",null,null,29,"L5N27","OpzOpenSource ",48]
["Servizio di Hard Disk retention 36 mesi",null,null,30,"L5N28","OpzHDDRetention36",347]
["Servizio di Hard Disk retention 60 mesi",null,null,31,"L5N28","OpzHDDRetention60",578.33000000000004]
["Estensione della manutenzione in garanzia delle apparecchiature per ulteriori 24 mesi",null,null,32,"L5N29","OpzEstensione24 ",481]
["Armadio tecnico realizzato con intelaiatura interna atta a supportare pannelli e chassis normalizzati standard ….",null,null,33,"L5N30","OpzRack ",543]
[null,null,null,34,"Costi aziendali di salute e sicurezza sui luoghi di lavoro (€)","Costi aziendali di salute e sicurezza sui luoghi di lavoro (€)",15070]
[null,null,null,35,"Costi di manodopera (€)","Costi di manodopera (€)",339558.48]
[]
["Inspur 8 ports SAN switch 8500-16Gb","TWS088",null,null,null,"SAN switch 16Gb",5370,null,null,null,null,null,null,null,null,null,null,"TWS088",null,"8500 16G","SAN switch 8500 16G",1,5370]
["Inspur 8 ports SAN switch 8500-32Gb","TWS089",null,null,null,"SAN switch 32Gb",7036,null,null,null,null,null,null,null,null,null,null,"TWS089",null,"8500 32G","SAN switch 8500 16G",1,7036]
[]
["Storage Inspur AS2600G2 - 23TB RAW SSD (All Flash)","UAS2600G2001",null,null,"L5N33","Storage AFA",19350,null,null,null,null,"PRICE TO BE DEFINED"]
["Storage Inspur AS2600G2 - 28TB RAW SAS","UAS2600G2001",null,null,"L5N34","Storage SAS",11350,null,null,null,null,"PRICE TO BE DEFINED"]